lending/lending_fUSD_20250501
["ID","MTS","AMOUNT","RATE_DAILY","PERIOD"]
[359493364,1746064241570,-500.0,0.00021394,2]
[359493365,1746064241580,-500.0,0.00021394,2]
[359493366,1746064241589,-500.48107556,0.00021394,2]
[359493367,1746064241598,-500.0,0.00021394,2]
[359493368,1746064241608,-500.0,0.00021394,2]
[359493369,1746064241617,-160.45172935,0.00021394,2]
[359493370,1746064241626,-187.20036533,0.00021394,2]
[359493371,1746064241636,-344.27675877,0.00021394,2]
[359493372,1746064241645,-500.43332278,0.00021394,2]
[359493373,1746064241654,-500.0,0.00021394,2]
[359493374,1746064241664,-500.68964993,0.00021394,2]
[359493375,1746064241673,-211.24478406,0.00021394,2]
[359493376,1746064241682,-315.56371199,0.00021394,2]
[359493377,1746064241692,-500.0,0.00021394,2]
[359493378,1746064241702,-500.0,0.00021394,2]
[359493379,1746064241711,-270.89897558,0.00021394,2]
[359493380,1746064241721,-500.64631312,0.00021394,2]
[359493381,1746064241730,-500.0,0.00021394,2]
[359493382,1746064241739,-505.45280058,0.00021406,2]
[359493383,1746064241749,-508.9980583,0.00021406,2]
[359493384,1746064241759,-500.59002653,0.00021406,2]
[359493385,1746064241768,-501.41990566,0.00021406,2]
[359493386,1746064241777,-500.0,0.00021406,2]
[359493387,1746064241786,-250.0,0.00021413,2]
[359493388,1746064241795,-420.0,0.00021454,2]
[359493389,1746064241804,-250.0,0.00021553,2]
[359493390,1746064241814,-200.0,0.00021553,2]
[359493391,1746064241823,-500.0,0.00021578,2]
[359493392,1746064241832,-166.66,0.00021617,2]
[359493393,1746064241840,-1000.0,0.00021644,2]
[359493394,1746064241850,-5496.1085364,0.00021693,3]
[359493395,1746064241859,-7314.26836107,0.000217,2]
[359493396,1746064241867,-5053.54823058,0.000218,2]
[359493397,1746064241877,-150.0,0.00021917,2]
[359493398,1746064241886,-513.80931495,0.00021918,2]
[359493399,1746064241895,-161.81251372,0.00021918,2]
[359493400,1746064241903,-10000.0,0.00022,2]
[359493401,1746064241913,-302.53,0.00022,2]
[359493402,1746064241922,-304.98,0.00022,2]
[359493403,1746064241931,-525.57,0.00022002,2]
[359493404,1746064241942,-300.0,0.00022132,2]
[359493405,1746064241951,-216.52952333,0.0002224,2]
[359493406,1746064241961,-166.66,0.00022266,2]
[359493407,1746064241971,-34262.70999449,0.000225,2]
[359493408,1746064241981,-151.08,0.00022527,2]
[359493409,1746064241990,-5496.1085364,0.0002259,4]
[359493410,1746064242001,-505.3753181,0.0002271,2]
[359493411,1746064242011,-166.66,0.00022915,2]
[359493412,1746064242022,-1181.25,0.0002295,2]
[359493413,1746064242034,-151.22,0.0002295,2]
[359493414,1746064242043,-166.86,0.0002295,2]
[359493415,1746064242053,-151.08,0.0002295,2]
[359493416,1746064242063,-451.24,0.0002295,2]
[359493417,1746064242073,-150.0,0.0002295,2]
[359493418,1746064242083,-150.0,0.0002295,2]
[359493419,1746064242094,-351.81,0.0002295,2]
[359493420,1746064242106,-451.24,0.0002295,2]
[359493421,1746064242116,-150.0,0.0002295,2]
[359493422,1746064242127,-1503.18221885,0.00023,2]
[359493423,1746064242139,-10000.0,0.00023,2]
[359493424,1746064242149,-945.427,0.00023,2]
[359493425,1746064242158,-400.0,0.00023,2]
[359493426,1746064242167,-202.4823363,0.00023,2]
[359493427,1746064242177,-33098.75819492,0.000232,2]
[359493428,1746064242188,-764.0,0.000232,2]
[359493429,1746064242198,-236.0,0.000232,2]
[359493430,1746064242207,-374.0,0.000232,2]
[359493431,1746064242219,-150.0,0.00023287,2]
[359493432,1746064242229,-587.0,0.00023369,2]
[359493433,1746064242239,-5496.1085364,0.00023486,4]
[359493434,1746064242250,-200.0,0.000235,2]
[359493435,1746064242260,-982.70442657,0.00023613,2]
[359493436,1746064242333,-500.0,0.00021254,2]
[359493437,1746064242342,-17.29557343,0.00023613,2]
[359493438,1746064242353,-388.6190727,0.0002376,2]
[359493439,1746064242364,-207.34182003,0.00023772,2]
[359493440,1746064242391,-152.67817997,0.00023772,2]
[359493441,1746064242401,-351.81,0.00023772,2]
[359493442,1746064242411,-151.08,0.00023779,2]
[359493443,1746064242420,-292.4181238,0.00023836,2]
[359493444,1746064242431,-740.2018762,0.00023836,2]
[359493445,1746064242441,-500.0,0.0002397,2]
[359493446,1746064242451,-1000.0,0.0002397,2]
[359493447,1746064242460,-503.6498959,0.0002397,2]
[359493448,1746064242470,-1658.58753618,0.0002397,2]
[359493449,1746064242479,-122.69321263,0.00023984,7]
[359493450,1746064242505,-28.30678737,0.00023984,7]
[359493451,1746064242515,-151.0,0.00023984,7]
[359493452,1746064242524,-193.248577,0.00023984,7]
[359493453,1746064242534,-3242.04463559,0.00024,2]
[359493454,1746064242546,-730.67027025,0.00024,2]
[359493455,1746064242557,-723.18760616,0.00024,2]
[359493456,1746064242567,-93.74941195,0.00024,2]
[359493457,1746064242578,-2355.93323927,0.00024,2]
[359493458,1746064242589,-263.87137854,0.00024,2]
[359493459,1746064242600,-10996.23860823,0.00024,2]
[359493473,1746064243626,-500.0,0.00021254,2]
[359493474,1746064243636,-500.0,0.00021254,2]
[359493475,1746064243646,-500.0,0.00021254,2]
[359493476,1746064243656,-500.0,0.00021254,2]
[359493477,1746064243666,-500.0,0.00021254,2]
[359493478,1746064243676,-500.0,0.00021254,2]
[359493479,1746064243687,-500.0,0.00021254,2]
[359493480,1746064243697,-30210.86666324,0.00024,2]
[359493481,1746064243708,-3734.83357984,0.00024,14]
[359493482,1746064243717,-151.0,0.00024,7]
[359493483,1746064243727,-151.0,0.00024,7]
[359493484,1746064243737,-151.0,0.00024,7]
[359493485,1746064243746,-151.0,0.00024,7]
[359493486,1746064243757,-151.0,0.00024,7]
[359493487,1746064243768,-151.0,0.00024,7]
[359493488,1746064243778,-151.0,0.00024,7]
[359493489,1746064243788,-159.0,0.00024,10]
[359493490,1746064243797,-1202.52150259,0.00024008,10]
[359493491,1746064243807,-1222.79058328,0.00024008,10]
[359493492,1746064243817,-1938.80547797,0.00024008,10]
[359493493,1746064243826,-151.0,0.00024025,7]
[359493494,1746064243836,-151.0,0.00024025,7]
[359493495,1746064243846,-245.84741176,0.00024067,2]
[359493496,1746064243855,-500.0,0.0002407,2]
[359493497,1746064243864,-500.0,0.0002407,2]
[359493498,1746064243874,-1000.0,0.0002407,2]
[359493499,1746064243883,-1000.0,0.0002407,2]
[359493500,1746064243892,-923.0,0.00024176,2]
[359493501,1746064243901,-1340.0,0.00024176,2]
[359493502,1746064243912,-797.0,0.00024176,2]
[359493503,1746064243922,-1289.0,0.00024176,2]
[359493504,1746064243932,-580.0,0.00024176,2]
[359493505,1746064243941,-1449.0,0.00024176,2]
[359493506,1746064243950,-913.0,0.00024176,2]
[359493507,1746064243959,-549.0,0.00024176,2]
[359493508,1746064243968,-2070.0,0.00024176,2]
[359493509,1746064243977,-876.0,0.00024176,2]
[359493510,1746064243986,-153.0,0.00024176,2]
[359493511,1746064243996,-878.0,0.00024176,2]
[359493512,1746064244006,-4003.0,0.00024176,2]
[359493513,1746064244015,-5281.696,0.00024176,2]
[359493514,1746064244025,-150.0,0.00024187,2]
[359493515,1746064244034,-150.0,0.00024187,2]
[359493516,1746064244043,-150.0,0.00024187,2]
[359493517,1746064244053,-150.0,0.00024187,2]
[359493518,1746064244063,-407.3039692,0.0002421,2]
[359493519,1746064244072,-3568.74033923,0.0002421,2]
[359493520,1746064244081,-525.57,0.00024266,2]
[359493521,1746064244090,-5496.1085364,0.00024383,5]
[359493522,1746064244100,-1061.0,0.000244,2]
[359493523,1746064244109,-150.01986085,0.00024628,2]
[359493524,1746064244119,-150.0,0.00024657,2]
[359493525,1746064244133,-1000.0,0.00024658,2]
[359493526,1746064244142,-330.87895996,0.00024773,2]
[359493527,1746064244151,-500.0,0.00024773,2]
[359493528,1746064244161,-500.0,0.00024773,2]
[359493529,1746064244173,-162.68185268,0.00024773,2]
[359493530,1746064244182,-151.0,0.00024783,7]
[359493531,1746064244191,-152.921439,0.00024783,7]
[359493532,1746064244201,-163.257342,0.00024783,7]
[359493533,1746064244211,-17656.3485238,0.00024783,2]
[359493534,1746064244221,-947.0539075,0.00024783,2]
[359493535,1746064244230,-156.881173,0.00024783,7]
[359493536,1746064244241,-14737.024907,0.00024783,2]
[359493537,1746064244250,-151.0,0.00024783,7]
[359493538,1746064244259,-151.0,0.00024783,7]
[359493539,1746064244268,-151.0,0.00024783,7]
[359493540,1746064244278,-614.516326,0.00024783,7]
[359493541,1746064244287,-614.516326,0.00024783,7]
[359493542,1746064244296,-151.0,0.00024783,7]
[359493543,1746064244305,-152.816945,0.00024783,7]
[359493544,1746064244315,-151.0,0.00024783,7]
[359493545,1746064244324,-174.065724,0.00024783,7]
[359493546,1746064244333,-3000.4309578,0.00024783,2]
[359493547,1746064244343,-95955.082252,0.00024783,2]
[359493548,1746064244352,-151.0,0.00024783,7]
[359493549,1746064244361,-155.490774,0.00024783,7]
[359493550,1746064244370,-151.0,0.00024783,7]
[359493551,1746064244380,-182.380855,0.00024783,7]
[359493552,1746064244389,-4715.2471162,0.00024783,2]
[359493553,1746064244399,-151.0,0.00024783,7]
[359493554,1746064244408,-151.0,0.00024783,7]
[359493555,1746064244418,-8038.7209906,0.00024783,2]
[359493556,1746064244428,-151.0,0.00024783,7]
[359493557,1746064244438,-151.0,0.00024783,7]
[359493558,1746064244447,-1490.3181144,0.00024783,2]
[359493559,1746064244455,-151.0,0.00024783,7]
[359493560,1746064244465,-184.285043,0.00024783,7]
[359493561,1746064244474,-502.06759,0.00024783,7]
[359493562,1746064244483,-151.0,0.00024783,7]
[359493563,1746064244492,-156.478564,0.00024783,7]
[359493564,1746064244501,-151.0,0.00024783,7]
[359493565,1746064244511,-155.722336,0.00024783,7]
[359493566,1746064244521,-184.996743,0.00024783,7]
[359493567,1746064244531,-151.0,0.00024783,7]
[359493568,1746064244541,-184.996743,0.00024783,7]
[359493569,1746064244550,-151.0,0.00024783,7]
[359493570,1746064244559,-151.0,0.00024783,7]
[359493571,1746064244568,-151.0,0.00024783,7]
[359493572,1746064244578,-151.0,0.00024783,7]
[359493573,1746064244587,-151.0,0.00024783,7]
[359493574,1746064244596,-151.0,0.00024783,7]
[359493575,1746064244605,-151.0,0.00024783,7]
[359493576,1746064244615,-151.0,0.00024783,7]
[359493577,1746064244624,-151.0,0.00024783,7]
[359493578,1746064244633,-158.139124,0.00024783,7]
[359493579,1746064244643,-176.065358,0.00024783,7]
[359493580,1746064244652,-2968.376951,0.00024783,7]
[359493581,1746064244663,-151.0,0.00024783,7]
[359493582,1746064244672,-2968.376951,0.00024783,7]
[359493583,1746064244681,-154.279935,0.00024783,7]
[359493584,1746064244690,-295.073806,0.00024783,7]
[359493585,1746064244699,-151.0,0.00024783,7]
[359493586,1746064244708,-295.073806,0.00024783,7]
[359493587,1746064244718,-151.0,0.00024783,7]
[359493588,1746064244727,-151.0,0.00024783,7]
[359493589,1746064244736,-151.0,0.00024783,7]
[359493590,1746064244745,-415.844051,0.00024783,7]
[359493591,1746064244754,-151.0,0.00024783,7]
[359493592,1746064244764,-151.0,0.00024783,7]
[359493593,1746064244773,-415.844051,0.00024783,7]
[359493594,1746064244782,-153.697169,0.00024783,7]
[359493595,1746064244791,-153.00613,0.00024783,7]
[359493596,1746064244801,-151.0,0.00024783,7]
[359493597,1746064244810,-151.0,0.00024783,7]
[359493598,1746064244819,-151.0,0.00024783,7]
[359493599,1746064244829,-151.0,0.00024783,7]
[359493600,1746064244838,-151.0,0.00024783,7]
[359493601,1746064244847,-151.0,0.00024783,7]
[359493602,1746064244856,-151.0,0.00024783,7]
[359493603,1746064244866,-151.0,0.00024783,7]
[359493604,1746064244875,-152.158669,0.00024783,7]
[359493605,1746064244884,-263.071309,0.00024783,7]
[359493606,1746064244893,-263.071309,0.00024783,7]
[359493607,1746064244902,-161.767001,0.00024783,7]
[359493608,1746064245077,-161.767001,0.00024783,7]
[359493609,1746064245086,-151.0,0.00024783,7]
[359493610,1746064245095,-151.0,0.00024783,7]
[359493611,1746064245104,-151.0,0.00024783,7]
[359493612,1746064245114,-340.813168,0.00024783,7]
[359493613,1746064245123,-155.347705,0.00024783,7]
[359493614,1746064245133,-340.813168,0.00024783,7]
[359493615,1746064245145,-161.546165,0.00024783,7]
[359493616,1746064245155,-151.0,0.00024783,7]
[359493617,1746064245164,-151.0,0.00024783,7]
[359493618,1746064245174,-153.954617,0.00024783,7]
[359493619,1746064245185,-151.34181,0.00024783,7]
[359493620,1746064245194,-151.0,0.00024783,7]
[359493621,1746064245203,-151.0,0.00024783,5]
[359493622,1746064245213,-151.0,0.00024783,7]
[359493623,1746064245223,-1118.148148,0.00024783,7]
[359493624,1746064245233,-1118.148148,0.00024783,7]
[359493625,1746064245242,-154.11594364,0.0002479,2]
[359493626,1746064245252,-500.0,0.00024799,2]
[359493627,1746064245261,-500.0,0.00024799,2]
[359493628,1746064245271,-151.0,0.000248,7]
[359493629,1746064245280,-151.0,0.000248,7]
[359493630,1746064245289,-151.0,0.000248,7]
[359493631,1746064245298,-151.0,0.000248,7]
[359493632,1746064245309,-151.0,0.000248,7]
[359493633,1746064245318,-151.0,0.000248,7]
[359493634,1746064245327,-151.0,0.000248,7]
[359493635,1746064245338,-259.003934,0.000248,7]
[359493636,1746064245348,-168.568969,0.000248,7]
[359493637,1746064245358,-349.895202,0.000248,7]
[359493638,1746064245368,-349.895202,0.000248,7]
[359493639,1746064245379,-151.0,0.000248,7]
[359493640,1746064245389,-151.0,0.000248,7]
[359493641,1746064245399,-151.0,0.000248,7]
[359493642,1746064245410,-151.0,0.000248,7]
[359493643,1746064245420,-151.0,0.000248,7]
[359493644,1746064245430,-151.0,0.000248,7]
[359493645,1746064245441,-151.0,0.000248,7]
[359493646,1746064245450,-151.0,0.000248,7]
[359493647,1746064245461,-151.0,0.000248,7]
[359493648,1746064245470,-370.20947,0.000248,7]
[359493649,1746064245480,-370.20947,0.000248,7]
[359493650,1746064245489,-151.0,0.000248,7]
[359493651,1746064245498,-151.0,0.000248,7]
[359493652,1746064245508,-156.782565,0.000248,7]
[359493653,1746064245518,-156.782565,0.000248,7]
[359493654,1746064245528,-151.0,0.000248,7]
[359493655,1746064245538,-151.0,0.000248,7]
[359493656,1746064245548,-151.0,0.000248,7]
[359493657,1746064245557,-151.0,0.000248,7]
[359493658,1746064245566,-151.0,0.000248,7]
[359493659,1746064245576,-151.0,0.000248,7]
[359493660,1746064245585,-176.406723,0.000248,7]
[359493661,1746064245595,-154.510879,0.000248,7]
[359493662,1746064245604,-614.516326,0.000248,7]
[359493663,1746064245614,-614.516326,0.000248,7]
[359493664,1746064245624,-153.614169,0.000248,7]
[359493665,1746064245635,-151.0,0.000248,7]
[359493666,1746064245645,-196.840339,0.000248,7]
[359493667,1746064245655,-151.0,0.000248,7]
[359493668,1746064245665,-151.0,0.000248,7]
[359493669,1746064245675,-151.0,0.000248,7]
[359493670,1746064245686,-164.189359,0.000248,7]
[359493671,1746064245695,-181.839761,0.000248,7]
[359493672,1746064245704,-151.0,0.000248,7]
[359493673,1746064245714,-184.285043,0.000248,7]
[359493674,1746064245723,-502.06759,0.000248,7]
[359493675,1746064245732,-151.0,0.000248,7]
[359493676,1746064245742,-151.0,0.000248,7]
[359493677,1746064245751,-184.996743,0.000248,7]
[359493678,1746064245760,-161.827892,0.000248,7]
[359493679,1746064245770,-184.996743,0.000248,7]
[359493680,1746064245779,-151.0,0.000248,7]
[359493681,1746064245789,-157.076841,0.000248,7]
[359493682,1746064245799,-151.0,0.000248,7]
[359493683,1746064245808,-271.881675,0.000248,7]
[359493684,1746064245818,-151.0,0.000248,7]
[359493685,1746064245827,-151.0,0.000248,7]
[359493686,1746064245836,-151.0,0.000248,7]
[359493687,1746064245846,-151.0,0.000248,7]
[359493688,1746064245856,-174.735767,0.000248,7]
[359493689,1746064245867,-2968.376951,0.000248,7]
[359493690,1746064245876,-244.835755,0.000248,7]
[359493691,1746064245889,-2968.376951,0.000248,7]
[359493692,1746064245899,-295.073806,0.000248,7]
[359493693,1746064245910,-151.0,0.000248,7]
[359493694,1746064245920,-295.073806,0.000248,7]
[359493695,1746064245931,-151.0,0.000248,7]
[359493696,1746064245942,-158.256317,0.000248,7]
[359493697,1746064245953,-151.0,0.000248,7]
[359493698,1746064245970,-415.844051,0.000248,7]
[359493699,1746064245979,-151.0,0.000248,7]
[359493700,1746064245989,-154.853156,0.000248,7]
[359493701,1746064245998,-415.844051,0.000248,7]
[359493702,1746064246007,-151.0,0.000248,7]
[359493703,1746064246016,-151.0,0.000248,7]
[359493704,1746064246027,-153.411368,0.000248,7]
[359493705,1746064246040,-296.478012,0.000248,7]
[359493706,1746064246049,-151.0,0.000248,7]
[359493707,1746064246058,-151.0,0.000248,7]
[359493708,1746064246067,-151.0,0.000248,7]
[359493709,1746064246076,-151.0,0.000248,7]
[359493710,1746064246085,-263.071309,0.000248,7]
[359493711,1746064246094,-263.071309,0.000248,7]
[359493712,1746064246104,-621591.045885,0.000248,3]
[359493713,1746064246113,-161.767001,0.000248,7]
[359493714,1746064246123,-161.767001,0.000248,7]
[359493715,1746064246135,-151.0,0.000248,7]
[359493716,1746064246145,-151.0,0.000248,7]
[359493717,1746064246156,-190.761533,0.000248,7]
[359493718,1746064246166,-340.813168,0.000248,7]
[359493719,1746064246178,-340.813168,0.000248,7]
[359493720,1746064246189,-151.0,0.000248,7]
[359493721,1746064246201,-151.0,0.000248,7]
[359493722,1746064246212,-151.0,0.000248,7]
[359493723,1746064246223,-151.0,0.000248,7]
[359493724,1746064246234,-1118.148148,0.000248,7]
[359493725,1746064246243,-1118.148148,0.000248,7]
[359493726,1746064246253,-216.52952333,0.00024813,2]
[359493727,1746064246262,-70460.434087,0.00024866,2]
[359493728,1746064246272,-451.849779,0.00024866,2]
[359493729,1746064246282,-500.0,0.00024882,2]
[359493730,1746064246291,-14804.9595527,0.00024883,2]
[359493731,1746064246300,-794.1106722,0.00024883,2]
[359493732,1746064246309,-12357.0882949,0.00024883,2]
[359493733,1746064246318,-500.0,0.00024899,2]
[359493734,1746064246328,-257.06346,0.000249,7]
[359493735,1746064246337,-151.0,0.000249,7]
[359493736,1746064246346,-151.0,0.000249,7]
[359493737,1746064246355,-151.0,0.000249,7]
[359493738,1746064246365,-151.0,0.000249,7]
[359493739,1746064246374,-159.238569,0.000249,7]
[359493740,1746064246384,-151.0,0.000249,7]
[359493741,1746064246393,-160.7731,0.000249,7]
[359493742,1746064246402,-151.0,0.000249,7]
[359493743,1746064246412,-186.517645,0.000249,7]
[359493744,1746064246421,-191.783811,0.000249,7]
[359493745,1746064246431,-164.382251,0.000249,7]
[359493746,1746064246440,-614.516326,0.000249,7]
[359493747,1746064246449,-614.516326,0.000249,7]
[359493748,1746064246459,-151.0,0.000249,7]
[359493749,1746064246468,-151.0,0.000249,7]
[359493750,1746064246477,-151.0,0.000249,7]
[359493751,1746064246487,-151.0,0.000249,7]
[359493752,1746064246496,-151.0,0.000249,7]
[359493753,1746064246506,-151.0,0.000249,7]
[359493754,1746064246515,-151.0,0.000249,7]
[359493755,1746064246525,-151.0,0.000249,7]
[359493756,1746064246535,-217.775685,0.000249,7]
[359493757,1746064246545,-263.071309,0.000249,7]
[359493758,1746064246554,-263.071309,0.000249,7]
[359493759,1746064246564,-151.0,0.000249,7]
[359493760,1746064246574,-151.0,0.000249,7]
[359493761,1746064246583,-340.813168,0.000249,7]
[359493762,1746064246593,-340.813168,0.000249,7]
[359493763,1746064246602,-151.0,0.000249,7]
[359493764,1746064246611,-151.0,0.000249,7]
[359493765,1746064246621,-151.0,0.000249,7]
[359493766,1746064246630,-1118.148148,0.000249,7]
[359493767,1746064246639,-1118.148148,0.000249,7]
[359493768,1746064246650,-200.39382008,0.00025,2]
[359493769,1746064246659,-1723.32548912,0.00025,2]
[359493770,1746064246668,-256.98870221,0.00025,2]
[359493771,1746064246678,-300.13215835,0.00025,2]
[359493772,1746064246687,-200.0,0.00025,2]
[359493773,1746064246696,-2938.10998587,0.00025,2]
[359493774,1746064246706,-1011.65587844,0.00025,2]
[359493775,1746064246716,-10000.0,0.00025,2]
[359493776,1746064246725,-20000.0,0.00025,5]
[359493777,1746064246734,-150.0,0.00025,2]
[359493778,1746064246743,-150.0,0.00025,2]
[359493779,1746064246752,-150.0,0.00025,2]
[359493780,1746064246761,-450.0,0.00025,2]
[359493781,1746064246770,-151.08,0.00025031,2]
[359493782,1746064246779,-5496.1085364,0.00025279,5]
[359493783,1746064246789,-505.53479803,0.00025452,2]
[359493784,1746064246798,-1000.0,0.00025452,2]
[359493785,1746064246807,-1000.0,0.00025452,2]
[359493786,1746064246816,-656.62868052,0.00025452,2]
[359493787,1746064246825,-396.54571878,0.00025452,2]
[359493788,1746064246835,-500.92279031,0.00025452,2]
[359493789,1746064246845,-1011.93284645,0.00025452,2]
[359493790,1746064246855,-503.05435588,0.00025452,2]
[359493791,1746064246863,-1000.0,0.00025452,2]
[359493792,1746064246872,-823.0,0.00025454,2]
[359493793,1746064246882,-154.48,0.00025488,2]
[359493794,1746064246890,-150.0,0.00025488,2]
[359493795,1746064246900,-150.0,0.00025488,2]
[359493796,1746064246909,-150.0,0.00025488,2]
[359493797,1746064246918,-150.0,0.00025488,2]
[359493798,1746064246928,-150.0,0.00025488,2]
[359493799,1746064246937,-150.0,0.00025488,2]
[359493800,1746064246946,-150.0,0.00025488,2]
[359493801,1746064246955,-1000.0,0.00025975,2]
[359493802,1746064246964,-150.0,0.00026027,2]
[359493803,1746064246973,-5496.1085364,0.00026176,6]
[359493804,1746064246982,-151.08,0.00026282,2]
[359493805,1746064246991,-1019.0,0.00026301,5]
[359493806,1746064247001,-1713.48669444,0.000264,2]
[359493807,1746064247010,-22201.87526646,0.000265,2]
[359493808,1746064247020,-525.57,0.0002653,2]
[359493809,1746064247030,-257.75,0.00026655,2]
[359493810,1746064247039,-714.88975929,0.0002675,2]
[359493811,1746064247050,-1002.31288123,0.00026774,2]
[359493812,1746064247063,-1000.0,0.00026797,2]
[359493813,1746064247072,-1000.0,0.00026797,2]
[359493814,1746064247081,-1003.85916262,0.0002686,2]
[359493815,1746064247091,-501.06029694,0.0002686,2]
[359493816,1746064247100,-1000.0,0.00026874,2]
[359493817,1746064247111,-501.99090457,0.00026874,2]
[359493818,1746064247122,-474.51724359,0.00026874,2]
[359493819,1746064247132,-504.94248061,0.00026874,2]
[359493820,1746064247144,-1000.0,0.00026874,2]
[359493821,1746064247154,-677.75275273,0.00026874,2]
[359493822,1746064247164,-511.2749024,0.00026874,2]
[359493823,1746064247174,-1000.0,0.00026874,2]
[359493824,1746064247184,-1000.0,0.00026874,2]
[359493825,1746064247193,-1007.79745625,0.00026885,2]
[359493826,1746064247203,-500.0,0.00027,2]
[359493827,1746064247218,-500.0,0.00027058,2]
[359493828,1746064247228,-150.0,0.00027066,2]
[359493829,1746064247237,-5496.1085364,0.00027072,7]
[359493830,1746064247247,-923.0,0.00027176,2]
[359493831,1746064247257,-1226.239,0.00027176,2]
[359493832,1746064247266,-797.0,0.00027176,2]
[359493833,1746064247275,-1289.0,0.00027176,2]
[359493834,1746064247284,-580.0,0.00027176,2]
[359493835,1746064247293,-876.0,0.00027176,2]
[359493836,1746064247303,-153.0,0.00027176,2]
[359493837,1746064247313,-878.0,0.00027176,2]
[359493838,1746064247322,-3638.671,0.00027176,2]
[359493839,1746064247331,-150.0,0.00027187,2]
[359493840,1746064247340,-150.0,0.00027187,2]
[359493841,1746064247349,-150.0,0.00027215,2]
[359493842,1746064247359,-6076.46701227,0.00027342,2]
[359493843,1746064247368,-150.0,0.0002736,2]
[359493844,1746064247377,-216.52952333,0.00027387,2]
[359493845,1746064247387,-150.0,0.00027397,2]
[359493846,1746064247397,-500.0,0.00027397,2]
[359493847,1746064247539,-500.0,0.00027397,2]
[359493848,1746064247548,-500.0,0.00027397,2]
[359493849,1746064247558,-500.0,0.00027397,2]
[359493850,1746064247568,-1108.0071482,0.00027397,2]
[359493851,1746064247578,-346.68530653,0.00027397,2]
[359493852,1746064247588,-300.0,0.00027397,2]
[359493853,1746064247597,-300.0,0.00027397,2]
[359493854,1746064247609,-151.0,0.00027397,7]
[359493855,1746064247618,-151.0,0.00027397,7]
[359493856,1746064247628,-5979.66,0.00027397,2]
[359493857,1746064247638,-942.85,0.00027397,2]
[359493858,1746064247648,-1152.99,0.00027397,2]
[359493859,1746064247657,-923.88,0.00027397,2]
[359493860,1746064247667,-426.98,0.00027397,2]
[359493861,1746064247677,-304.76,0.00027397,2]
[359493862,1746064247687,-152.38,0.00027397,2]
[359493863,1746064247697,-305.09,0.00027397,2]
[359493864,1746064247707,-1152.99,0.00027397,2]
[359493865,1746064247716,-324.22,0.00027397,2]
[359493866,1746064247725,-351.81,0.00027397,2]
[359493867,1746064247735,-1152.99,0.00027397,2]
[359493868,1746064247744,-351.81,0.00027397,2]
[359493869,1746064247754,-150.0,0.00027397,2]
[359493870,1746064247763,-351.81,0.00027397,2]
[359493871,1746064247773,-351.81,0.00027397,2]
[359493872,1746064247784,-1200.0,0.000274,2]
[359493873,1746064247794,-151.08,0.00027534,2]
[359493874,1746064247803,-150.0,0.00027594,2]
[359493875,1746064247813,-37371.0,0.000276,2]
[359493876,1746064247822,-150.0,0.00027609,2]